bitfinex/quotes_SOLUSD_20260310
["timestamp","ask_amount","ask_price","bid_price","bid_amount"]
[1773141698263,1.2630811,86.902,86.88,0.69269705]
[1773141698481,1.2630811,86.902,86.87,4.07713766]
[1773141698482,1.2630811,86.902,86.881,12.20269348]
[1773141698992,1.2630811,86.913,86.891,0.69307234]
[1773141699164,1.2630811,86.925,86.89,4.77021]
[1773141699491,1.2630811,86.919,86.884,0.69307234]
[1773141700565,1.2630811,86.919,86.89,4.07713766]
[1773141700781,1.2630811,86.919,86.891,0.69379505]
[1773141702190,1.2630811,86.909,86.881,11.50993735]
[1773141702383,1.2630811,86.889,86.863,11.51238156]
[1773141702568,1.2630811,86.889,86.856,28.78321504]
[1773141702569,1.2630811,86.879,86.856,40.29652442]
[1773141703168,1.2630811,86.879,86.856,40.99105928]
[1773141707492,1.2630811,86.879,86.857,0.69632181]
[1773141709596,1.2630811,86.879,86.856,28.78321504]
[1773141710115,1.2630811,86.879,86.856,29.48056534]
[1773141710468,4.07713766,86.9,86.87,5.34078085]
[1773141710670,4.07713766,86.9,86.87,1.26364319]
[1773141711094,4.07713766,86.9,86.861,1.26364319]
[1773141711595,4.07713766,86.89,86.861,1.26364319]
[1773141711790,4.07713766,86.89,86.862,11.5125141]
[1773141712294,11.50893668,86.889,86.862,11.5125141]
[1773141712492,1.26112762,86.888,86.862,11.5125141]
[1773141718296,1.26112762,86.888,86.862,12.77615729]
[1773141721499,1.26112762,86.888,86.864,11.51224903]
[1773141722780,1.26112762,86.886,86.864,11.51224903]
[1773141723682,1.36470821,86.884,86.864,11.51224903]
[1773141723889,1.36470821,86.869,86.841,1.35542034]
[1773141724097,4.07268972,86.87,86.841,1.35542034]
[1773141724404,11.50946653,86.885,86.841,1.35542034]
[1773141724597,164.6,86.942,86.84,4.07268972]
[1773141724598,3.69383402,86.914,86.861,1.35542034]
[1773141724792,4.07268972,86.9,86.861,1.35542034]
[1773141725590,4.07268972,86.9,86.871,12.86674172]
[1773141725591,11.50761228,86.899,86.871,12.86674172]
[1773141725787,11.50761228,86.899,86.872,1.35542034]
[1773141725998,1.36470821,86.898,86.872,1.35542034]
[1773141729408,1.36470821,86.889,86.868,1.35542034]
[1773141730905,1.36470821,86.879,86.847,11.51444793]
[1773141731092,1.36470821,86.869,86.847,11.51444793]
[1773141731296,1.36470821,86.879,86.85,4.07268972]
[1773141731610,1.36470821,86.879,86.851,1.35542034]
[1773141731990,1.36470821,86.869,86.841,1.35542034]
[1773141735089,28.77337576,86.886,86.851,1.35542034]
[1773141735090,1.36470821,86.886,86.851,1.35542034]
[1773141737404,1.36470821,86.884,86.853,1.35542034]
[1773141738817,1.36470821,86.879,86.852,11.51383963]
[1773141739395,1.36470821,86.877,86.852,11.51383963]
[1773141740314,1.36470821,86.877,86.853,1.35542034]
[1773141743715,1.36470821,86.888,86.861,1.35542034]
[1773141744897,1.36470821,86.888,86.863,1.35542034]
[1773141747717,1.36470821,86.888,86.865,1.35542034]
[1773141749528,1.36470821,86.893,86.865,1.35542034]
[1773141749704,1.36470821,86.893,86.867,1.35542034]
[1773141752831,1.36470821,86.893,86.869,1.35542034]
[1773141753534,1.31855581,86.899,86.871,1.36406347]
[1773141753714,1.31855581,86.91,86.881,1.36406347]
[1773141754118,1.31855581,86.928,86.901,1.36406347]
[1773141754320,1.31855581,86.928,86.911,1.36406347]
[1773141754736,1.31855581,86.928,86.905,1.36406347]
[1773141754942,1.31855581,86.928,86.906,12.87074885]
[1773141755155,1.31855581,86.928,86.907,1.36406347]
[1773141755357,0.2,86.93,86.907,1.36406347]
[1773141755860,1.31855581,86.929,86.906,11.50668538]
[1773141756059,1.31855581,86.929,86.906,12.87074885]
[1773141756452,1.31855581,86.929,86.907,1.36406347]
[1773141757960,1.31855581,86.929,86.908,11.50642058]
[1773141758144,1.31855581,86.929,86.909,1.36406347]
[1773141759262,0.2,86.93,86.911,1.36406347]
[1773141759655,0.2,86.94,86.921,1.36406347]
[1773141759960,0.2,86.95,86.921,1.36406347]
[1773141760464,1.31855581,86.958,86.941,1.36406347]
[1773141762966,1.31855581,86.958,86.942,11.50192082]
[1773141763152,0.2,86.96,86.943,1.36406347]
[1773141763945,1.31855581,86.959,86.942,11.50192082]
[1773141764660,4.07268972,86.95,86.921,1.36406347]
[1773141764968,1.31855581,86.949,86.921,1.36406347]
[1773141765361,1.31855581,86.949,86.922,1.36406347]
[1773141767163,1.31855581,86.949,86.924,1.36406347]
[1773141769162,0.2,87.04,86.925,40.26459591]
[1773141769466,0.2,87.04,86.941,1.27459765]
[1773141769467,1.39402583,86.969,86.941,1.27459765]
[1773141769667,1.39402583,86.959,86.925,11.50417026]
[1773141769969,1.39402583,86.939,86.919,11.5048494]
[1773141770377,1.39402583,86.929,86.905,28.7668325]
[1773141770553,1.39402583,86.929,86.842,46.06039971]
[1773141770554,1.39402583,86.919,86.894,28.77038404]
[1773141771372,1.39402583,86.919,86.881,40.2849875]
[1773141771784,1.39402583,86.919,86.882,1.27459765]
[1773141772261,1.39402583,86.919,86.891,1.27459765]
[1773141773654,1.39402583,86.919,86.893,1.27459765]
[1773141776469,1.39402583,86.919,86.894,40.27896056]
[1773141776672,1.39402583,86.919,86.894,41.55355821]
[1773141779174,1.39402583,86.919,86.895,1.27459765]
[1773141781773,1.39402583,86.919,86.896,11.50800957]
[1773141782872,4.06992185,86.94,86.911,1.27459765]
[1773141783677,4.06992185,86.95,86.913,1.36684762]
[1773141784880,1.34098094,86.949,86.921,1.36684762]
[1773141786896,3.69383402,86.978,86.92,4.06992185]
[1773141786897,1.34098094,86.986,86.951,1.36684762]
[1773141787186,1.34098094,86.979,86.951,1.36684762]
[1773141787489,1.34098094,86.979,86.922,132.30252409]
[1773141787490,1.34098094,86.969,86.941,1.36684762]
[1773141788185,4.06992185,86.96,86.941,1.36684762]
[1773141788392,1.34098094,86.963,86.941,1.36684762]
[1773141788781,1.34098094,86.969,86.943,1.36684762]
[1773141791191,1.34098094,86.975,86.945,1.36684762]
[1773141791975,4.06992185,86.98,86.946,40.25487083]
[1773141792175,5.41090279,86.98,86.951,1.36684762]
[1773141792491,1.34098094,86.979,86.951,1.36684762]
[1773141792872,1.34098094,86.969,86.946,40.25487083]
[1773141793073,1.34098094,86.969,86.946,41.62171845]
[1773141793278,1.34098094,86.969,86.947,1.36684762]
[1773141793685,1.34098094,86.979,86.947,1.36684762]
[1773141794084,1.34098094,86.999,86.97,4.06992185]
[1773141794396,1.34098094,87.006,86.981,1.36684762]
[1773141795079,1.34098094,87.006,86.971,1.36684762]
[1773141795786,1.34098094,87.006,86.973,1.36684762]
[1773141796786,1.34098094,87.006,86.981,1.36684762]
[1773141798590,1.34098094,87.006,86.983,1.36684762]
[1773141800291,1.34098094,86.999,86.978,11.4971602]
[1773141800600,1.34098094,86.999,86.973,1.36684762]
[1773141803498,1.34098094,86.999,86.974,40.24191137]
[1773141803795,0.2,87.01,86.981,1.36684762]
[1773141804291,1.54098094,87.01,86.981,1.36684762]
[1773141804495,5.61090279,87.01,86.981,1.36684762]
[1773141804804,1.34098094,87.009,86.981,1.36684762]
[1773141805902,1.34098094,87.008,86.982,11.49663148]
[1773141806285,1.34098094,87.008,86.982,12.8634791]
[1773141806680,1.34098094,87.008,86.983,1.36684762]
[1773141807303,0.2,87.01,86.991,1.36684762]
[1773141808422,0.2,87.03,87.012,1.36684762]
[1773141809005,1.34098094,87.029,87.001,1.36684762]
[1773141809200,4.06992185,87.02,87.001,1.36684762]
[1773141809423,1.34098094,87.019,86.993,1.36684762]
[1773141810906,1.34098094,87.019,86.994,12.86189325]
[1773141811111,1.34098094,87.019,86.995,1.36684762]
[1773141811494,1.34098094,87.017,86.994,11.49504563]
[1773141811922,1.34098094,87.009,86.983,1.36684762]
[1773141812122,1.34098094,87.009,86.984,1.36684762]
[1773141813319,1.34098094,87.009,86.986,1.36684762]
[1773141815114,1.34098094,87.009,86.987,12.88535589]
[1773141815815,11.49064466,87.028,86.991,1.38938523]
[1773141816314,4.06992185,87.02,86.991,1.38938523]
[1773141816496,4.06992185,87.01,86.987,11.49597066]
[1773141816698,4.06992185,87.01,86.988,1.38938523]
[1773141817808,40.21703156,87.028,86.99,1.38938523]
[1773141817809,1.2629358,87.012,86.99,1.38938523]
[1773141818917,1.26516132,87.009,86.991,11.49544205]
[1773141819220,1.26516132,87.009,86.991,12.88482728]
[1773141819421,4.06992185,87.0,86.973,1.38938523]
[1773141820501,4.06992185,86.99,86.951,1.45645062]
[1773141821116,4.06992185,86.99,86.961,1.45645062]
[1773141821928,4.06992185,86.99,86.963,1.45645062]
[1773141822098,4.06992185,87.0,86.963,1.45645062]
[1773141822506,4.06992185,87.0,86.971,1.45645062]
[1773141825123,4.06992185,87.0,86.973,1.45645062]
[1773141827113,0.02728418,86.999,86.973,1.45645062]
[1773141827626,4.06992185,87.0,86.975,1.45645062]
[1773141828132,4.10006329,87.0,86.975,1.45645062]
[1773141828510,4.06992185,87.0,86.975,1.45645062]
[1773141828711,0.03014144,87.005,86.975,1.45645062]
[1773141828921,0.03296737,86.999,86.974,11.49768896]
[1773141829613,0.03296737,86.999,86.974,12.95413958]
[1773141829813,0.03296737,86.999,86.975,1.45645062]
[1773141830530,11.49438499,86.999,86.975,1.45645062]
[1773141830735,0.03576556,86.998,86.975,1.45645062]
[1773141832718,0.03576556,86.998,86.976,11.49742457]
[1773141834342,0.03576556,86.998,86.976,1.45645062]
[1773141835341,0.03576556,86.998,86.961,40.24792723]
[1773141835342,0.04928248,86.989,86.962,1.45645062]
[1773141835943,4.0632834,86.99,86.962,1.45645062]
[1773141836646,4.11517716,86.99,86.964,1.45645062]
[1773141838656,3.69383402,87.034,86.966,1.45645062]
[1773141838657,0.05956027,87.028,86.966,1.45645062]
[1773141838937,0.05956027,87.038,87.011,1.45645062]
[1773141839141,11.54882551,87.038,87.011,1.45645062]
[1773141839528,11.48926524,87.038,87.011,1.45645062]
[1773141840125,0.2,87.04,87.011,1.45645062]
[1773141840331,15.75232153,87.04,87.011,1.45645062]
[1773141841050,15.75232153,87.04,87.013,1.45645062]
[1773141841343,15.75232153,87.04,87.012,11.49266767]
[1773141841344,0.2,87.04,87.021,1.45645062]
[1773141842225,0.2,87.04,87.03,4.0632834]
[1773141842423,0.2,87.04,87.033,1.45645062]
[1773141844046,11.48910258,87.039,87.011,1.45645062]
[1773141844243,0.2,87.04,87.012,1.45645062]
[1773141844547,0.2,87.04,87.014,1.45645062]
[1773141846935,0.2,87.04,87.016,1.45645062]
[1773141847137,0.08081317,87.038,87.016,1.45645062]
[1773141847338,0.2,87.05,87.021,1.45645062]
[1773141847536,0.2,87.05,87.031,1.45645062]
[1773141848951,0.2,87.05,87.033,1.45645062]
[1773141851833,0.2,87.05,87.035,1.45645062]
[1773141852038,0.2,87.05,87.034,11.48976262]
[1773141853660,0.2,87.05,87.031,1.45645062]
[1773141855743,0.2,87.05,87.032,11.49002665]
[1773141855962,0.09994002,87.049,87.032,11.49002665]
[1773141856344,0.2,87.05,87.032,11.49002665]
[1773141856758,0.2,87.05,87.033,1.45645062]
[1773141858061,0.10392722,87.048,87.021,11.49147906]
[1773141858245,0.2,87.05,87.022,1.45645062]
[1773141860543,0.2,87.05,87.024,1.45645062]
[1773141862752,0.2,87.05,87.026,1.45645062]
[1773141865066,0.2,87.05,87.028,1.45645062]
[1773141865362,0.2,87.05,87.031,1.45645062]
[1773141866053,0.2,87.05,87.027,11.49068679]
[1773141866054,0.11895604,87.049,87.027,11.49068679]
[1773141867567,0.11895604,87.049,87.026,1.45645062]
[1773141867767,0.2,87.05,87.022,1.45645062]
[1773141869669,0.2,87.05,87.024,1.45645062]
[1773141872469,0.2,87.05,87.026,1.45645062]
[1773141873750,0.2,87.05,87.028,1.4736486]
[1773141874666,0.13421056,87.049,87.028,1.4736486]
[1773141874863,0.13583355,87.039,87.016,1.4736486]
[1773141875261,4.0632834,87.04,87.016,1.4736486]
[1773141875875,0.13742226,87.039,87.018,1.4736486]
[1773141876175,4.0632834,87.03,86.98,4.0632834]
[1773141876354,4.0632834,87.03,86.977,40.24052334]
[1773141876355,4.0632834,87.03,86.99,4.0632834]
[1773141878174,4.0632834,87.03,86.993,1.5251597]
[1773141878365,4.0632834,87.03,87.0,4.0632834]
[1773141878563,4.0632834,87.03,87.001,1.5251597]
[1773141879771,11.49042273,87.029,87.001,1.5251597]
[1773141880370,4.0632834,87.02,87.002,11.49398864]
[1773141880562,4.0632834,87.02,87.003,1.5251597]
[1773141880765,28.72203045,87.042,87.003,1.5251597]
[1773141880766,4.0632834,87.03,87.003,1.5251597]
[1773141882871,4.0632834,87.03,87.005,1.5251597]
[1773141885080,4.0632834,87.01,86.979,11.49702801]
[1773141885266,4.0632834,87.0,86.98,1.5251597]
[1773141885466,4.0632834,87.01,86.98,1.5251597]
[1773141885670,4.0632834,87.02,86.991,1.5251597]
[1773141885868,11.48988937,87.034,87.001,1.5251597]
[1773141886677,11.51050796,87.034,87.001,1.5251597]
[1773141886885,0.02237827,87.029,87.001,1.5251597]
[1773141887382,11.512801,87.029,87.003,1.5251597]
[1773141887583,4.0632834,87.04,87.011,1.5251597]
[1773141888099,11.48879666,87.042,87.002,40.22896024]
[1773141888100,0.02411225,87.057,87.021,1.5251597]
[1773141888279,11.68773013,87.05,87.021,1.5251597]
[1773141888781,15.75101353,87.05,87.021,1.5251597]
[1773141888985,4.08910538,87.04,87.003,1.5251597]
[1773141889184,0.02582198,87.039,87.003,1.5251597]
[1773141889485,0.02582198,87.038,87.005,1.5251597]
[1773141891086,11.48867259,87.043,87.011,1.5251597]
[1773141892287,0.03082792,87.043,87.012,11.49266767]
[1773141892477,0.03082792,87.043,87.013,1.5251597]
[1773141895689,0.03724536,87.048,87.015,1.5251597]
[1773141896978,0.03724536,87.048,87.014,11.49240352]
[1773141896979,0.2,87.05,87.021,1.5251597]
[1773141897183,11.68774762,87.05,87.021,1.5251597]
[1773141897878,11.72810203,87.05,87.023,1.5251597]
[1773141898085,0.04035441,87.049,87.023,1.5251597]
[1773141900001,0.04035441,87.049,87.024,11.49108291]
[1773141900301,0.04035441,87.049,87.025,1.5251597]
[1773141900500,11.68774762,87.05,87.025,1.5251597]
[1773141900679,11.68774762,87.05,87.031,1.5251597]
[1773141900680,0.2,87.05,87.031,1.5251597]
[1773141902208,0.2,87.05,87.0,4.05726555]
[1773141902209,0.2,87.05,87.033,1.5251597]
[1773141902407,0.04635795,87.049,87.021,1.5251597]
[1773141902707,0.2,87.05,87.022,1.5251597]
[1773141903693,0.2,87.05,87.031,1.5251597]
[1773141903898,0.05070186,87.049,87.022,1.5251597]
[1773141904216,0.05070186,87.048,87.02,1.5251597]
[1773141904499,0.2,87.05,87.031,1.5251597]
[1773141905909,0.2,87.05,87.033,1.5251597]
[1773141909306,0.2,87.05,87.035,1.5251597]
[1773141910688,0.2,87.05,87.034,11.48976262]
[1773141910689,11.48382503,87.079,87.041,1.5251597]
[1773141911189,0.26031994,87.078,87.041,1.5251597]
[1773141912011,4.05726555,87.07,87.043,1.44108236]
[1773141913033,11.74602,87.069,87.045,1.44108236]
[1773141913222,0.26087604,87.068,87.045,1.44108236]
[1773141913613,0.26087604,87.068,87.044,11.48844262]
[1773141913816,4.05726555,87.06,87.04,11.48897058]
[1773141914323,4.05726555,87.06,87.041,1.44108236]
[1773141915008,0.26115748,87.063,87.041,1.44108236]
[1773141915322,0.2614366,87.068,87.043,1.44108236]
[1773141915624,11.48514396,87.069,87.043,1.44108236]
[1773141916712,0.26170979,87.068,87.043,1.44108236]
[1773141917815,11.48540778,87.067,87.043,1.44108236]
[1773141918333,11.48540778,87.067,87.034,28.7242639]
[1773141918334,11.48540778,87.067,87.045,1.44108236]
[1773141918527,0.26223339,87.066,87.045,1.44108236]
[1773141919417,4.05726555,87.07,87.045,1.44108236]
[1773141919726,0.26274296,87.077,87.047,1.44108236]
[1773141920316,28.71013095,87.078,87.046,11.48817866]
[1773141920317,0.26274296,87.069,87.046,11.48817866]
[1773141923738,0.26373578,87.067,87.041,11.48883859]
[1773141924341,0.26373578,87.067,87.041,12.92992095]
[1773141924519,0.26373578,87.067,87.042,1.44108236]
[1773141926742,11.4855397,87.066,87.043,11.48857461]
[1773141926935,11.4855397,87.066,87.043,12.92965697]
[1773141927321,11.4855397,87.066,87.044,1.44108236]
[1773141929435,11.75046677,87.066,87.044,1.44108236]
[1773141930451,11.75046677,87.066,87.043,11.48857461]
[1773141930452,11.48511056,87.07,87.046,1.44108236]
[1773141932448,15.80799303,87.07,87.046,1.44108236]
[1773141934252,0.26628329,87.069,87.004,102.5]
[1773141934471,4.05726555,87.01,86.986,1.44618066]
[1773141934751,4.05726555,87.0,86.961,1.44618066]
[1773141935157,4.05726555,87.02,86.991,1.44618066]
[1773141935450,4.05726555,87.04,87.001,1.44618066]
[1773141936234,0.26668333,87.039,87.001,1.44618066]
[1773141936645,4.05726555,87.03,87.002,1.44618066]
[1773141937751,11.49042273,87.029,87.002,1.44618066]
[1773141945057,0.26785974,87.034,86.968,57.49234626]
[1773141945058,11.48980613,87.034,87.004,1.44618066]
[1773141945253,4.3256563,87.06,87.021,1.44618066]
[1773141945556,0.26839075,87.049,87.021,1.44618066]
[1773141947046,11.48791471,87.048,87.021,1.44618066]
[1773141948054,4.05726555,87.04,87.019,1.46035758]
[1773141948450,11.48791471,87.048,87.019,1.46035758]
[1773141948754,11.48791471,87.048,87.021,1.46035758]
[1773141949960,11.48725489,87.053,87.023,1.46035758]
[1773141950158,0.26947018,87.069,87.031,1.46035758]
[1773141951063,4.32689825,87.06,87.031,1.46035758]
[1773141952865,11.4864632,87.059,87.031,1.46035758]
[1773141953370,4.05726555,87.05,87.027,1.46035758]
[1773141953950,0.27011716,87.057,87.027,1.46035758]
[1773141955469,11.48685903,87.056,87.031,1.46035758]
[1773141956858,11.48685903,87.056,87.032,11.49002665]
[1773141957068,11.48685903,87.056,87.033,1.46035758]
[1773141958962,11.48559413,87.066,87.041,1.46035758]
[1773141961668,11.48382503,87.079,87.061,1.46035758]
[1773141961975,11.48382503,87.079,87.05,4.05576934]
[1773141962177,0.47131715,87.078,87.05,4.05576934]
[1773141962363,0.47131715,87.059,87.02,4.05576934]
[1773141962563,4.05576934,87.05,87.02,4.05576934]
[1773141963773,11.48778274,87.049,87.022,11.49134701]
[1773141963965,11.48778274,87.049,87.023,1.42209498]
[1773141964276,0.47219638,87.048,87.023,1.42209498]
[1773141965389,11.4869271,87.056,87.03,4.05576934]
[1773141965583,11.4869271,87.056,87.031,1.42209498]
[1773141967278,0.47305974,87.049,87.023,1.42209498]
[1773141969585,11.48791471,87.048,87.023,1.42209498]
[1773141970184,11.96178936,87.048,87.023,1.42209498]
[1773141971388,0.47416662,87.029,87.007,1.42209498]
[1773141971774,45.94484788,87.061,86.938,46.00978649]
[1773141971775,1.40629188,87.019,86.938,46.00978649]
[1773141971976,1.40629188,87.009,86.97,4.05576934]
[1773141972484,1.40629188,87.009,86.98,4.05576934]
[1773141973768,11.49319602,87.008,86.983,1.42209498]
[1773141974286,28.72940887,87.019,86.991,1.42209498]
[1773141974287,11.49174318,87.019,86.991,1.42209498]
[1773141975175,11.49093493,87.026,86.991,1.42209498]
[1773141975381,1.40629188,87.043,87.011,1.42209498]
[1773141975991,11.48878046,87.042,87.013,1.42209498]
[1773141977069,1.40629188,87.042,87.015,1.42209498]
[1773141977992,5.46206122,87.04,87.015,1.42209498]
[1773141978374,1.40629188,87.039,87.015,1.42209498]
[1773141978988,1.40629188,87.039,87.0,1.42209498]
[1773141979297,1.40629188,87.029,87.001,1.42209498]
[1773141979506,11.49055476,87.028,87.003,1.42209498]
[1773141980005,1.40629188,87.027,87.003,1.42209498]
[1773141983290,11.49081883,87.026,87.005,1.42209498]
[1773141984295,4.05576934,87.04,87.005,1.42209498]
[1773141985196,1.40629188,87.039,87.005,1.42209498]
[1773141985896,1.40629188,87.038,87.007,1.42209498]
[1773141988577,1.40629188,87.036,87.007,1.42209498]
[1773141988780,4.05576934,87.03,87.007,1.42209498]
[1773141988976,1.40629188,87.029,87.007,1.42209498]
[1773141992404,11.48990746,87.033,87.009,1.42209498]
[1773141992696,11.48990746,87.033,87.011,1.42209498]
[1773141994107,1.52181968,87.033,87.011,1.42209498]
[1773141995806,11.49002665,87.032,87.011,1.42209498]
[1773141997703,11.49002665,87.032,87.013,1.49613776]
[1773141998003,13.01167255,87.034,87.015,1.49613776]
[1773142000114,1.52181968,87.033,87.015,1.49613776]
[1773142001925,11.49002665,87.032,87.015,1.49613776]
[1773142003520,1.52181968,87.032,87.015,1.49613776]
[1773142004897,11.49015867,87.031,87.015,1.49613776]
[1773142006819,1.52181968,87.031,87.015,1.49613776]
[1773142008310,13.01211038,87.03,87.004,1.49613776]
[1773142008518,1.52181968,87.029,87.004,1.49613776]
[1773142010921,11.49055476,87.028,87.006,1.49613776]
[1773142015321,1.52181968,87.027,87.006,1.49613776]
[1773142016198,11.49081883,87.026,87.006,1.49613776]
[1773142018825,1.52181968,87.025,87.006,1.49613776]
[1773142019140,1.52181968,87.03,87.006,1.49613776]
[1773142021619,13.01224241,87.029,87.006,1.49613776]
[1773142021821,1.52181968,87.028,87.006,1.49613776]
[1773142022429,1.52181968,87.028,87.007,1.49613776]
[1773142024024,1.42170061,87.026,86.997,1.48206651]
[1773142024207,1.42170061,87.019,86.983,1.48206651]
[1773142024401,1.42170061,87.019,86.984,1.48206651]
[1773142025536,11.49187524,87.018,86.991,1.48206651]
[1773142026237,11.49128418,87.023,86.991,1.48206651]
[1773142026444,11.49055476,87.028,87.001,1.48206651]
[1773142027538,1.42170061,87.033,87.003,1.48206651]
[1773142031125,1.42170061,87.029,87.005,1.48206651]
[1773142031344,11.49002665,87.032,87.005,1.48206651]
[1773142032040,12.91172726,87.032,87.005,1.48206651]
[1773142032436,12.91172726,87.032,87.004,11.49372442]
[1773142032437,1.42170061,87.029,87.007,1.48206651]
[1773142034122,11.49042273,87.029,87.007,1.48206651]
[1773142035038,12.91212334,87.029,87.007,1.48206651]
[1773142035648,1.42170061,87.026,87.007,1.48206651]
[1773142035822,1.42170061,87.026,87.002,11.49396517]
[1773142037735,11.49095087,87.025,87.002,11.49396517]
[1773142038040,1.42170061,87.024,87.002,11.49396517]
[1773142038745,1.42170061,87.024,87.003,1.48206651]
[1773142039246,11.49095087,87.025,87.003,1.48206651]
[1773142039632,11.49046178,87.029,87.003,1.48206651]
[1773142040646,1.42170061,87.028,87.005,1.48206651]
[1773142042832,1.42170061,87.028,87.0,12.97622295]
[1773142043031,1.42170061,87.028,87.001,1.48206651]
[1773142043841,1.42170061,87.019,86.991,1.48206651]
[1773142044023,4.05932417,87.02,86.992,1.48206651]
[1773142044430,1.42170061,87.019,86.992,1.48206651]
[1773142048440,4.05932417,87.02,86.98,32.80140195]
[1773142048441,1.42170061,87.017,86.98,4.05932417]
[1773142048823,0.16266114,86.989,86.951,1.48206651]
[1773142048950,4.05932417,86.96,86.924,33.1615656]
[1773142049149,4.05932417,86.95,86.931,1.48206651]
[1773142049351,2.91475849,86.988,86.932,1.48206651]
[1773142049352,4.05932417,86.97,86.932,1.48206651]
[1773142049664,4.05932417,86.96,86.932,1.48206651]
[1773142050331,11.49967225,86.959,86.932,1.48206651]
[1773142052754,0.27194962,86.958,86.932,1.48206651]
[1773142054742,4.05932417,86.95,86.932,1.48206651]
[1773142056167,0.07364527,86.939,86.917,1.42496252]
[1773142056668,4.05932417,86.94,86.917,1.42496252]
[1773142057762,4.05932417,86.94,86.918,11.50509134]
[1773142057944,4.05932417,86.94,86.919,1.52496252]
[1773142058844,4.05932417,86.94,86.921,1.52496252]
[1773142059564,0.075336,86.929,86.904,1.52496252]
[1773142059760,4.05932417,86.92,86.904,1.52496252]
[1773142060748,11.50299924,86.934,86.91,1.72496252]
[1773142060946,4.05932417,86.93,86.91,1.72496252]
[1773142065670,11.50299924,86.934,86.912,1.52496252]
[1773142066875,11.50231771,86.939,86.911,11.5060234]
[1773142068964,4.05932417,86.93,86.911,11.5060234]
[1773142071066,11.50298641,86.934,86.911,11.5060234]
[1773142071263,4.05932417,86.93,86.911,11.5060234]
[1773142072954,4.05932417,86.94,86.911,11.5060234]
[1773142073363,4.05932417,86.94,86.911,40.2710819]
[1773142074362,0.16266114,86.955,86.911,40.2710819]
[1773142074668,4.05932417,86.94,86.911,40.2710819]
[1773142078865,0.08503502,86.939,86.912,1.52496252]
[1773142079979,0.08503502,86.939,86.914,1.52496252]
[1773142080179,0.08548398,86.954,86.921,1.52496252]
[1773142080479,4.05932417,86.95,86.921,1.52496252]
[1773142081083,4.14523588,86.95,86.921,1.52496252]
[1773142081378,0.08591171,86.949,86.913,40.27015521]
[1773142081583,0.08591171,86.929,86.911,11.5060234]
[1773142081786,0.16266114,86.955,86.9,4.25932417]
[1773142081787,4.05932417,86.92,86.9,0.2]
[1773142081966,11.50496439,86.919,86.893,11.50829953]
[1773142082170,11.50496439,86.919,86.893,13.07642535]
[1773142082395,4.05932417,86.91,86.893,1.56812582]
[1773142082568,4.05932417,86.9,86.888,1.56812582]
[1773142083789,4.07166962,86.9,86.883,1.56812582]
[1773142083991,11.50761228,86.899,86.883,1.56812582]
[1773142084287,4.07166962,86.88,86.86,1.56812582]
[1773142084488,0.16266114,86.898,86.852,1.56812582]
[1773142084673,4.07166962,86.88,86.852,1.56812582]
[1773142084987,40.27664299,86.899,86.852,1.56812582]
[1773142084988,4.07166962,86.87,86.852,1.56812582]
[1773142085192,4.07166962,86.87,86.846,1.56812582]
[1773142085379,4.07166962,86.88,86.846,1.56812582]
[1773142085767,11.50908428,86.888,86.851,1.56812582]
[1773142086388,4.07166962,86.88,86.851,1.56812582]
[1773142086566,4.07166962,86.87,86.851,1.56812582]
[1773142087678,4.07166962,86.88,86.851,1.56812582]
[1773142088189,4.07166962,86.86,86.842,1.56812582]
[1773142089895,4.07166962,86.87,86.842,1.56812582]
[1773142090098,4.07166962,86.87,86.843,11.51503287]
[1773142090286,4.07166962,86.87,86.844,1.56812582]
[1773142091083,4.07166962,86.86,86.84,0.2]
[1773142091277,4.07166962,86.86,86.841,11.51529807]
[1773142091594,4.07166962,86.86,86.841,13.08342389]
[1773142091799,4.07166962,86.86,86.841,1.56812582]
[1773142091996,4.07166962,86.85,86.841,1.56812582]
[1773142092300,4.07166962,86.85,86.84,0.2]
[1773142092606,11.51307606,86.858,86.84,0.2]
[1773142092789,4.07166962,86.86,86.84,11.71532363]
[1773142093392,4.07166962,86.86,86.842,1.56812582]
[1773142095684,11.51291173,86.859,86.842,1.56812582]
[1773142095922,4.07166962,86.86,86.843,1.56812582]
[1773142098198,4.07166962,86.86,86.845,1.56812582]
[1773142104511,4.07166962,86.85,86.84,0.2]
[1773142104714,11.51291173,86.859,86.84,0.2]
[1773142104912,11.51291173,86.859,86.84,1.76812582]
[1773142105303,4.07166962,86.87,86.842,1.56812582]
[1773142106722,11.51158641,86.869,86.844,1.56812582]
[1773142108016,4.07166962,86.86,86.844,1.56812582]
[1773142108223,4.07166962,86.86,86.84,0.2]
[1773142108420,4.07166962,86.85,86.84,0.2]
[1773142108815,4.07166962,86.86,86.84,0.2]
[1773142109621,4.07166962,86.86,86.84,1.76812582]
[1773142109803,4.07166962,86.87,86.842,1.56812582]
[1773142110708,4.07166962,86.86,86.842,1.56812582]
[1773142111102,11.51052637,86.877,86.842,1.56812582]
[1773142111303,4.07166962,86.87,86.844,1.56812582]
[1773142112630,11.51158641,86.869,86.846,1.56812582]
[1773142115830,4.07166962,86.86,86.846,1.56812582]
[1773142116124,4.07166962,86.86,86.841,1.56812582]